[Event "1st Bangalore GM-Open-A 2024"]
[Site "Bangalore"]
[Date "2024.01.20"]
[Round "4.24"]
[White "Jaiveer Mahendru"]
[Black "Shyaamnikhil P"]
[Result "0-1"]
[ECO "B90"]
[WhiteElo "2294"]
[BlackElo "2443"]
[Annotator "RC"]
[PlyCount "168"]
[EventDate "2024.01.20"]
[EventType "swiss"]
[EventCountry "IND"]
[SourceTitle "playchess.com"]
[Source "ChessBase"]
[SourceQuality "1"]
[TimeControl "5400+30"]

1. e4 {[%emt 0:00:03]} c5 {[%emt 0:00:17]} 2. Nf3 {[%emt 0:00:03]} d6 {[%emt 0:00:05]} 3. d4 {[%emt 0:00:03]} cxd4 {[%emt 0:00:04]} 4. Nxd4 {[%emt 0:00:04]} Nf6 {[%emt 0:00:04]} 5. Nc3 {[%emt 0:00:03]} a6 {[%emt 0:00:04]} 6. Be3 {[%emt 0:00:03]} e5 {[%emt 0:00:23]} 7. Nb3 {[%emt 0:00:12]} Be7 {[%emt 0:00:07]} 8. h3 {[%emt 0:00:13]} Be6 {[%emt 0:00:44]} 9. Qf3 {[%emt 0:00:06]} Nbd7 {[%emt 0:00:41]} 10. O-O-O {[%emt 0:00:38]} Rc8 {[%emt 0:01:04]} 11. g4 {[%emt 0:03:48]} h6 {[%emt 0:00:54]} 12. Nd5 {[%emt 0:01:05]} Bxd5 {[%emt 0:01:51]} 13. exd5 {[%emt 0:00:05]} Nb6 {[%emt 0:00:09]} 14. h4 {[%emt 0:11:55]} Qc7 {[%emt 0:05:31]} 15. c3 {[%emt 0:14:39]} Nc4 {[%emt 0:11:05]} 16. Bd3 {[%emt 0:02:37]} g6 {[%emt 0:08:27]} 17. Bxh6 {[%emt 0:40:39]} e4 {[%emt 0:24:11]} 18. Bxe4 {[%emt 0:00:02]} Ne5 {[%emt 0:00:40]} 19. Qe2 {[%emt 0:11:22]} Rxh6 {[%emt 0:06:41]} 20. g5 {[%emt 0:00:20]} Qc4 {[%emt 0:06:33]} 21. Qxc4 {[%emt 0:09:52]} Rxc4 {[%emt 0:01:51]} 22. Nd2 {[%emt 0:00:26]} Rxe4 {[%emt 0:01:45]} 23. Nxe4 {[%emt 0:00:13]} Nxe4 {[%emt 0:00:04]} 24. gxh6 {[%emt 0:00:04]} Kf8 {[%emt 0:00:19]} 25. f4 {[%emt 0:02:41]} Ng4 {[%emt 0:00:13]} 26. h5 {[%emt 0:01:24]} g5 {[%emt 0:00:18]} 27. Rhg1 {[%emt 0:00:41]} Nxh6 {[%emt 0:02:27]} 28. Rd4 {[%emt 0:00:01]} Nf2 {[%emt 0:00:41]} 29. fxg5 {[%emt 0:00:35]} Nf5 {[%emt 0:00:13]} 30. Rdg4 {[%emt 0:00:58]} Nxg4 {[%emt 0:00:38]} 31. Rxg4 {[%emt 0:00:02]} Ne3 {[%emt 0:00:12]} 32. Rg3 {[%emt 0:00:56]} Nxd5 {[%emt 0:00:15]} 33. g6 {[%emt 0:00:33]} Nf4 {[%emt 0:02:17]} 34. Rf3 {[%emt 0:00:29]} Bg5 {[%emt 0:00:31]} 35. gxf7 {[%emt 0:00:18]} d5 {[%emt 0:04:16]} 36. Kd2 {[%emt 0:00:29]} Kxf7 {[%emt 0:00:27]} 37. Ke3 {[%emt 0:00:22]} Ke6 {[%emt 0:00:23]} 38. Kd4 {[%emt 0:00:44]} b6 {[%emt 0:02:26]} 39. a4 {[%emt 0:00:34]} Bf6+ {[%emt 0:01:01]} 40. Ke3 {[%emt 0:00:02]} Nxh5 {[%emt 0:00:09]} 41. Rh3 {[%emt 0:00:45]} Ng7 {[%emt 0:00:13]} 42. Kd3 {[%emt 0:00:19]} Nf5 {[%emt 0:00:24]} 43. Rh7 {[%emt 0:00:25]} Ne7 {[%emt 0:00:14]} 44. Kc2 {[%emt 0:00:51]} Nc6 {[%emt 0:00:52]} 45. Rb7 {[%emt 0:00:14]} Bd8 {[%emt 0:00:08]} 46. Rh7 {[%emt 0:00:56]} a5 {[%emt 0:01:06]} 47. Rh8 {[%emt 0:00:26]} Kd6 {[%emt 0:00:11]} 48. Rh6+ {[%emt 0:00:16]} Kc5 {[%emt 0:00:08]} 49. Rh5 {[%emt 0:00:19]} Bc7 {[%emt 0:00:13]} 50. Rh7 {[%emt 0:00:17]} Be5 {[%emt 0:00:15]} 51. Rh5 {[%emt 0:00:36]} Bg3 {[%emt 0:02:44]} 52. Rg5 {[%emt 0:00:15]} Bf4 {[%emt 0:00:11]} 53. Rf5 {[%emt 0:00:06]} Bd6 {[%emt 0:00:17]} 54. Rf6 {[%emt 0:01:08]} Be5 {[%emt 0:01:00]} 55. Rh6 {[%emt 0:01:06]} Bc7 {[%emt 0:03:36]} 56. Rh7 {[%emt 0:00:10]} Kd6 {[%emt 0:00:09]} 57. Rh6+ {[%emt 0:00:12]} Kd7 {[%emt 0:00:06]} 58. Kd3 {[%emt 0:00:39]} Bf4 {[%emt 0:00:28]} 59. Rh7+ {[%emt 0:00:57]} Kd6 {[%emt 0:00:07]} 60. Rh4 {[%emt 0:00:33]} Ne5+ {[%emt 0:00:28]} 61. Kc2 {[%emt 0:00:03]} Bg5 {[%emt 0:01:26]} 62. Rh5 {[%emt 0:00:04]} Bf6 {[%emt 0:00:05]} 63. Rh6 {[%emt 0:00:09]} Nd7 {[%emt 0:00:08]} 64. Kb3 {[%emt 0:00:33]} Ke5 {[%emt 0:00:24]} 65. Rh7 {[%emt 0:00:44]} Ke6 {[%emt 0:01:31]} 66. Rh6 {[%emt 0:00:13]} Nc5+ {[%emt 0:00:24]} 67. Ka3 {[%emt 0:00:01]} Ne4 {[%emt 0:00:22]} 68. Rh7 {[%emt 0:02:03]} Be7+ {[%emt 0:00:48]} 69. Ka2 {[%emt 0:00:07]} Bg5 {[%emt 0:02:13]} 70. Rb7 {[%emt 0:00:35]} Be3 {[%emt 0:00:28]} 71. Rb8 {[%emt 0:00:11]} Kd7 {[%emt 0:00:23]} 72. Rh8 {[%emt 0:00:58]} Nc5 {[%emt 0:00:43]} 73. Rh3 {[%emt 0:00:32]} Bg5 {[%emt 0:00:16]} 74. Rh5 {[%emt 0:00:05]} Ne4 {[%emt 0:00:06]} 75. Rh8 {[%emt 0:00:50]} Kc6 {[%emt 0:00:17]} 76. Rc8+ {[%emt 0:00:22]} Kd7 {[%emt 0:02:47]} 77. Rb8 {[%emt 0:00:02]} Bd8 {[%emt 0:00:08]} 78. Ra8 {[%emt 0:00:45]} Nd6 {[%emt 0:00:37]} 79. b4 {[%emt 0:00:57]} Nc8 {[%emt 0:00:17]} 80. bxa5 {[%emt 0:00:23]} bxa5 {[%emt 0:00:07]} 81. Rb8 {[%emt 0:00:55]} Nb6 {[%emt 0:00:14]} 82. Rb7+ {[%emt 0:00:12]} Bc7 {[%emt 0:00:06]} 83. Kb3 {[%emt 0:00:18]} Kc6 {[%emt 0:05:52]} 84. Ra7 {[%emt 0:00:01]} Nc8 {[%emt 0:00:06]} 0-1

[Event "1st Bangalore GM-Open-A 2024"]
[Site "Bangalore"]
[Date "2024.01.20"]
[Round "4.25"]
[White "Goutham Krishna H"]
[Black "Mohammad Nubairshah Shaikh"]
[Result "1-0"]
[ECO "E61"]
[WhiteElo "2288"]
[BlackElo "2428"]
[Annotator "RC"]
[PlyCount "95"]
[EventDate "2024.01.20"]
[EventType "swiss"]
[EventCountry "IND"]
[SourceTitle "playchess.com"]
[Source "ChessBase"]
[SourceQuality "1"]
[TimeControl "5400+30"]

1. d4 {[%emt 0:00:02]} Nf6 {[%emt 0:01:50]} 2. c4 {[%emt 0:01:49]} d6 {[%emt 0:00:29]} 3. Nf3 {[%emt 0:00:21]} g6 {[%emt 0:00:07]} 4. Nc3 {[%emt 0:00:08]} Bg7 {[%emt 0:00:16]} 5. Bf4 {[%emt 0:00:12]} O-O {[%emt 0:00:20]} 6. h3 {[%emt 0:00:04]} Nbd7 {[%emt 0:00:43]} 7. e3 {[%emt 0:00:10]} b6 {[%emt 0:00:12]} 8. Be2 {[%emt 0:00:42]} Bb7 {[%emt 0:00:12]} 9. Qc2 {[%emt 0:00:02]} e5 {[%emt 0:00:49]} 10. dxe5 {[%emt 0:00:06]} dxe5 {[%emt 0:06:21]} 11. Bh2 {[%emt 0:00:07]} Qe7 {[%emt 0:06:45]} 12. O-O {[%emt 0:00:04]} e4 {[%emt 0:04:00]} 13. Nd4 {[%emt 0:00:14]} Ne5 {[%emt 0:00:50]} 14. Rfd1 {[%emt 0:05:45]} Rad8 {[%emt 0:03:56]} 15. Rd2 {[%emt 0:16:24]} c5 {[%emt 0:32:34]} 16. Nb3 {[%emt 0:01:51]} Rxd2 {[%emt 0:14:15]} 17. Nxd2 {[%emt 0:01:57]} Rd8 {[%emt 0:00:08]} 18. Rd1 {[%emt 0:03:07]} Bc6 {[%emt 0:14:51]} 19. Bf1 {[%emt 0:02:31]} Kf8 {[%emt 0:03:33]} 20. a3 {[%emt 0:04:47]} h6 {[%emt 0:00:29]} 21. b4 {[%emt 0:02:38]} g5 {[%emt 0:00:29]} 22. bxc5 {[%emt 0:01:25]} bxc5 {[%emt 0:00:08]} 23. Nb3 {[%emt 0:00:33]} Rxd1 {[%emt 0:02:36]} 24. Qxd1 {[%emt 0:00:05]} Kg8 {[%emt 0:00:19]} 25. Nb5 {[%emt 0:05:19]} Ne8 {[%emt 0:02:01]} 26. Qd2 {[%emt 0:02:48]} a6 {[%emt 0:00:28]} 27. Nc3 {[%emt 0:00:25]} Nf6 {[%emt 0:01:36]} 28. Nd5 {[%emt 0:03:39]} Nxd5 29. cxd5 {[%emt 0:00:05]} Ba4 {[%emt 0:00:03]} 30. d6 {[%emt 0:00:38]} Qa7 {[%emt 0:00:01]} 31. Na5 {[%emt 0:01:09]} Nc6 {[%emt 0:04:46]} 32. Nxc6 {[%emt 0:00:57]} Bxc6 {[%emt 0:00:00]} 33. Qa5 {[%emt 0:00:01]} Qb7 {[%emt 0:01:02]} 34. Qxc5 {[%emt 0:00:50]} Bf6 {[%emt 0:00:34]} 35. Bg3 {[%emt 0:00:50]} Bd7 {[%emt 0:00:39]} 36. Bc4 {[%emt 0:01:48]} Qc8 {[%emt 0:00:01]} 37. Qa7 {[%emt 0:01:55]} Qxc4 {[%emt 0:01:02]} 38. Qxd7 {[%emt 0:00:03]} Kg7 {[%emt 0:00:12]} 39. Qe8 {[%emt 0:00:27]} Qc1+ {[%emt 0:00:46]} 40. Kh2 {[%emt 0:00:01]} Qxa3 {[%emt 0:00:16]} 41. d7 {[%emt 0:01:21]} Qa5 {[%emt 0:00:00]} 42. Bd6 {[%emt 0:01:07]} Qa2 {[%emt 0:00:30]} 43. Be5 {[%emt 0:00:24]} Qxf2 {[%emt 0:00:20]} 44. d8=Q {[%emt 0:00:19]} Bxe5+ {[%emt 0:01:07]} 45. Qxe5+ {[%emt 0:00:02]} Kg6 {[%emt 0:00:07]} 46. Qxe4+ {[%emt 0:00:15]} Kg7 {[%emt 0:00:24]} 47. Qed4+ {[%emt 0:00:15]} f6 {[%emt 0:00:06]} 48. Q4d7+ {[%emt 0:00:04]} 1-0

[Event "1st Bangalore GM-Open-A 2024"]
[Site "Bangalore"]
[Date "2024.01.20"]
[Round "4.26"]
[White "Vignesh B"]
[Black "Kaustuv, Kundu"]
[Result "1/2-1/2"]
[ECO "B06"]
[WhiteElo "2258"]
[BlackElo "2423"]
[Annotator "ChessBase"]
[PlyCount "153"]
[EventDate "2024.01.20"]
[EventType "swiss"]
[EventCountry "IND"]
[SourceTitle "playchess.com"]
[Source "ChessBase"]
[SourceQuality "1"]
[TimeControl "5400+30"]

1. Nf3 {[%emt 0:10:31]} g6 {[%emt 0:02:57]} 2. e4 {[%emt 0:00:08]} c5 {[%emt 0:00:37]} 3. c3 {[%emt 0:00:06]} d5 {[%emt 0:04:25]} 4. exd5 {[%emt 0:02:12]} Qxd5 {[%emt 0:00:07]} 5. d4 {[%emt 0:00:22]} Bg7 {[%emt 0:00:28]} 6. dxc5 {[%emt 0:01:59]} Qxc5 {[%emt 0:00:32]} 7. Be3 {[%emt 0:05:17]} Qc7 {[%emt 0:00:54]} 8. Be2 {[%emt 0:08:09]} Nf6 {[%emt 0:00:53]} 9. Na3 {[%emt 0:00:36]} Nc6 {[%emt 0:15:36]} 10. Nb5 {[%emt 0:08:11]} Qb8 {[%emt 0:00:00]} 11. h3 {[%emt 0:17:27]} O-O {[%emt 0:00:00]} 12. O-O {[%emt 0:00:43]} Rd8 {[%emt 0:00:00]} 13. Qc1 {[%emt 0:00:07]} Nd5 {[%emt 0:00:00]} 14. Rd1 {[%emt 0:00:05]} a6 {[%emt 0:10:45]} 15. Nbd4 {[%emt 0:03:39]} Nxe3 {[%emt 0:07:25]} 16. Qxe3 {[%emt 0:00:37]} Nxd4 {[%emt 0:00:15]} 17. Nxd4 {[%emt 0:04:17]} Re8 {[%emt 0:05:33]} 18. Bf3 {[%emt 0:00:47]} e5 {[%emt 0:03:28]} 19. Bd5 {[%emt 0:00:30]} Bxh3 {[%emt 0:11:18]} 20. Qxh3 {[%emt 0:07:52]} exd4 {[%emt 0:00:42]} 21. cxd4 {[%emt 0:01:18]} Rd8 {[%emt 0:05:25]} 22. Qf3 {[%emt 0:09:48]} Rd7 {[%emt 0:00:33]} 23. Rd2 {[%emt 0:02:38]} Qa7 {[%emt 0:00:48]} 24. Rad1 {[%emt 0:00:27]} Rf8 {[%emt 0:03:02]} 25. a4 {[%emt 0:06:14]} Qb6 {[%emt 0:05:13]} 26. Qb3 {[%emt 0:00:56]} Qd6 {[%emt 0:03:41]} 27. Bf3 {[%emt 0:01:10]} Bf6 {[%emt 0:01:02]} 28. Qc4 {[%emt 0:00:49]} Rfd8 {[%emt 0:00:29]} 29. d5 {[%emt 0:01:38]} h5 {[%emt 0:00:38]} 30. Rc2 {[%emt 0:00:34]} Kg7 {[%emt 0:00:29]} 31. b4 {[%emt 0:00:05]} Be5 {[%emt 0:01:20]} 32. Re1 {[%emt 0:00:27]} Qf6 {[%emt 0:01:46]} 33. Qd3 {[%emt 0:02:41]} Qf4 {[%emt 0:07:28]} 34. g3 {[%emt 0:00:10]} Qf6 {[%emt 0:00:15]} 35. Rc4 {[%emt 0:00:08]} Rh8 {[%emt 0:02:48]} 36. Rce4 {[%emt 0:00:51]} Bd6 {[%emt 0:00:14]} 37. Rd1 {[%emt 0:02:42]} Rc7 {[%emt 0:00:53]} 38. Qd4 {[%emt 0:00:51]} Rhc8 {[%emt 0:00:39]} 39. Qxf6+ {[%emt 0:00:34]} Kxf6 {[%emt 0:00:06]} 40. b5 {[%emt 0:00:05]} a5 {[%emt 0:00:16]} 41. Be2 {[%emt 0:01:18]} Rc2 {[%emt 0:00:25]} 42. Rdd4 {[%emt 0:01:06]} R8c3 {[%emt 0:00:56]} 43. Kf1 {[%emt 0:00:54]} Ra3 {[%emt 0:01:19]} 44. Rc4 {[%emt 0:00:27]} Rb2 {[%emt 0:00:48]} 45. Rc8 {[%emt 0:00:26]} Ra1+ {[%emt 0:02:31]} 46. Kg2 {[%emt 0:00:06]} Raa2 {[%emt 0:00:08]} 47. Kf1 {[%emt 0:01:20]} Rb4 {[%emt 0:00:29]} 48. Re3 {[%emt 0:00:02]} Raxa4 {[%emt 0:01:49]} 49. Rd8 {[%emt 0:00:16]} Be5 {[%emt 0:01:57]} 50. Rd7 {[%emt 0:00:22]} Re4 {[%emt 0:00:54]} 51. Rxe4 {[%emt 0:00:44]} Rxe4 {[%emt 0:00:02]} 52. Rxb7 {[%emt 0:00:02]} Bd6 {[%emt 0:01:13]} 53. Ra7 {[%emt 0:01:27]} a4 {[%emt 0:00:13]} 54. Ra6 {[%emt 0:00:33]} Ke7 {[%emt 0:00:25]} 55. Ra7+ {[%emt 0:00:03]} Kf8 {[%emt 0:00:32]} 56. Ra6 {[%emt 0:00:21]} Bc5 {[%emt 0:01:06]} 57. d6 {[%emt 0:00:05]} Rd4 {[%emt 0:00:18]} 58. Ra8+ {[%emt 0:00:05]} Kg7 {[%emt 0:00:06]} 59. d7 {[%emt 0:00:01]} Be7 {[%emt 0:00:33]} 60. Bf3 {[%emt 0:00:37]} Rxd7 {[%emt 0:00:28]} 61. Rxa4 {[%emt 0:00:03]} Bc5 {[%emt 0:00:37]} 62. Rc4 {[%emt 0:00:14]} Bd4 {[%emt 0:00:44]} 63. Rc6 {[%emt 0:00:25]} Ra7 {[%emt 0:00:20]} 64. Ra6 {[%emt 0:00:15]} Rxa6 {[%emt 0:00:25]} 65. bxa6 {[%emt 0:00:02]} Ba7 {[%emt 0:00:09]} 66. Ke2 {[%emt 0:00:05]} Kf6 {[%emt 0:00:21]} 67. Bd5 {[%emt 0:00:02]} g5 {[%emt 0:00:05]} 68. f4 {[%emt 0:00:18]} gxf4 {[%emt 0:00:37]} 69. gxf4 {[%emt 0:00:01]} h4 {[%emt 0:01:10]} 70. Bg2 {[%emt 0:00:05]} Ke6 {[%emt 0:01:00]} 71. Kf3 {[%emt 0:00:05]} Kd6 {[%emt 0:00:11]} 72. Kg4 {[%emt 0:00:05]} Bf2 {[%emt 0:00:05]} 73. Kf5 {[%emt 0:00:03]} Bd4 {[%emt 0:00:11]} 74. Kg5 {[%emt 0:00:04]} Kc7 {[%emt 0:00:15]} 75. Kxh4 {[%emt 0:00:13]} Kb6 {[%emt 0:00:04]} 76. Bf1 {[%emt 0:00:07]} f6 {[%emt 0:00:05]} 77. Kg4 {[%emt 0:00:19]} 1/2-1/2

[Event "1st Bangalore GM-Open-A 2024"]
[Site "Bangalore"]
[Date "2024.01.20"]
[Round "4.27"]
[White "Vishnu Prasanna. V"]
[Black "Alekhya Mukhopadhyay"]
[Result "1-0"]
[ECO "E93"]
[WhiteElo "2413"]
[BlackElo "2184"]
[Annotator "RC"]
[PlyCount "133"]
[EventDate "2024.01.20"]
[EventType "swiss"]
[EventCountry "IND"]
[SourceTitle "playchess.com"]
[Source "ChessBase"]
[SourceQuality "1"]
[TimeControl "5400+30"]

1. d4 {[%emt 0:00:04]} Nf6 {[%emt 0:00:14]} 2. c4 {[%emt 0:00:05]} g6 {[%emt 0:00:07]} 3. Nc3 {[%emt 0:00:05]} Bg7 {[%emt 0:00:06]} 4. e4 {[%emt 0:00:06]} d6 {[%emt 0:00:05]} 5. Be2 {[%emt 0:00:08]} O-O {[%emt 0:00:09]} 6. Nf3 {[%emt 0:00:04]} e5 {[%emt 0:00:05]} 7. d5 {[%emt 0:00:04]} a5 {[%emt 0:00:38]} 8. Be3 {[%emt 0:00:07]} Nbd7 {[%emt 0:00:46]} 9. Nd2 {[%emt 0:00:16]} c5 {[%emt 0:05:11]} 10. g4 {[%emt 0:01:01]} Ne8 {[%emt 0:02:22]} 11. h4 {[%emt 0:01:58]} Bf6 {[%emt 0:10:00]} 12. g5 {[%emt 0:04:10]} Be7 {[%emt 0:00:17]} 13. Nf1 {[%emt 0:00:07]} Ng7 {[%emt 0:02:36]} 14. Ng3 {[%emt 0:03:33]} f5 {[%emt 0:06:55]} 15. gxf6 {[%emt 0:05:07]} Bxf6 {[%emt 0:00:18]} 16. h5 {[%emt 0:00:07]} Bg5 {[%emt 0:00:47]} 17. Qd2 {[%emt 0:02:22]} Bxe3 {[%emt 0:02:40]} 18. Qxe3 {[%emt 0:06:55]} Qf6 {[%emt 0:02:06]} 19. hxg6 {[%emt 0:00:29]} hxg6 {[%emt 0:00:20]} 20. Rh6 {[%emt 0:00:37]} Qf4 {[%emt 0:19:05]} 21. Rxg6 {[%emt 0:01:31]} Qxe3 {[%emt 0:01:35]} 22. fxe3 {[%emt 0:00:06]} Nf6 {[%emt 0:03:09]} 23. Nb5 {[%emt 0:02:18]} Kh7 {[%emt 0:04:43]} 24. Rg5 {[%emt 0:03:24]} Kh6 {[%emt 0:00:26]} 25. Rxg7 {[%emt 0:00:05]} Kxg7 {[%emt 0:00:10]} 26. Nxd6 {[%emt 0:00:04]} Ra6 {[%emt 0:00:42]} 27. Nxc8 {[%emt 0:07:47]} Rxc8 {[%emt 0:00:05]} 28. O-O-O {[%emt 0:00:04]} Kf7 {[%emt 0:01:55]} 29. Rf1 {[%emt 0:04:18]} Rg8 {[%emt 0:03:41]} 30. Nf5 {[%emt 0:00:05]} Rg2 {[%emt 0:01:31]} 31. Bd3 {[%emt 0:01:42]} Rb6 {[%emt 0:05:37]} 32. Bc2 {[%emt 0:00:04]} Rb4 {[%emt 0:02:07]} 33. Nd6+ {[%emt 0:08:00]} Kg7 {[%emt 0:09:05]} 34. a3 {[%emt 0:11:08]} Rb6 {[%emt 0:00:12]} 35. Nc8 {[%emt 0:04:48]} Ra6 {[%emt 0:00:42]} 36. Kb1 {[%emt 0:11:31]} Ra8 {[%emt 0:04:24]} 37. Nd6 {[%emt 0:00:17]} b6 {[%emt 0:01:02]} 38. Nf5+ {[%emt 0:04:38]} Kf7 {[%emt 0:00:24]} 39. Rh1 {[%emt 0:03:03]} Rf2 {[%emt 0:03:45]} 40. Rh4 {[%emt 0:08:43]} Rf1+ {[%emt 0:06:40]} 41. Ka2 {[%emt 0:00:08]} Kg6 {[%emt 0:02:02]} 42. Rh2 {[%emt 0:00:15]} Rg1 {[%emt 0:01:00]} 43. Nh4+ {[%emt 0:00:34]} Kg7 {[%emt 0:01:06]} 44. Nf3 {[%emt 0:00:28]} Ng4 {[%emt 0:00:34]} 45. Rh5 {[%emt 0:00:24]} Rg2 {[%emt 0:00:29]} 46. Ba4 {[%emt 0:00:37]} Rf8 {[%emt 0:00:38]} 47. Nh4 {[%emt 0:01:05]} Rg1 {[%emt 0:00:44]} 48. Nf5+ {[%emt 0:00:32]} Kg6 {[%emt 0:00:17]} 49. Rh3 {[%emt 0:00:03]} Nf6 {[%emt 0:00:40]} 50. Nh4+ {[%emt 0:01:46]} Kg7 {[%emt 0:00:37]} 51. Nf3 {[%emt 0:00:06]} Rg4 {[%emt 0:00:24]} 52. Nxe5 {[%emt 0:00:07]} Rxe4 {[%emt 0:00:07]} 53. Rg3+ {[%emt 0:00:03]} Kh6 {[%emt 0:00:21]} 54. Rg6+ {[%emt 0:00:20]} Kh5 {[%emt 0:00:20]} 55. Bd1+ {[%emt 0:00:14]} Kh4 {[%emt 0:00:33]} 56. Nf3+ {[%emt 0:03:31]} Kh5 {[%emt 0:00:15]} 57. Rxf6 {[%emt 0:01:06]} Rxf6 {[%emt 0:00:16]} 58. Nd2+ {[%emt 0:00:06]} Rg4 {[%emt 0:00:22]} 59. Ne4 {[%emt 0:00:19]} Rf1 {[%emt 0:00:46]} 60. Ng3+ {[%emt 0:01:39]} Kg5 {[%emt 0:00:36]} 61. Nxf1 {[%emt 0:00:40]} Rxc4 {[%emt 0:00:04]} 62. Nd2 {[%emt 0:00:32]} Rc1 {[%emt 0:00:14]} 63. Ba4 {[%emt 0:00:05]} Kf6 {[%emt 0:01:02]} 64. d6 {[%emt 0:00:06]} Re1 {[%emt 0:01:11]} 65. Nc4 {[%emt 0:00:10]} Ke6 {[%emt 0:00:10]} 66. d7 {[%emt 0:00:05]} Ke7 {[%emt 0:00:21]} 67. Nxb6 {[%emt 0:00:06]} 1-0

[Event "1st Bangalore GM-Open-A 2024"]
[Site "Bangalore"]
[Date "2024.01.20"]
[Round "4.28"]
[White "Panda Sambit"]
[Black "Aquino, Jethro Dino"]
[Result "1-0"]
[ECO "A34"]
[WhiteElo "2404"]
[BlackElo "2166"]
[Annotator "RC"]
[PlyCount "95"]
[EventDate "2024.01.20"]
[EventType "swiss"]
[EventCountry "IND"]
[SourceTitle "playchess.com"]
[Source "ChessBase"]
[SourceQuality "1"]
[TimeControl "5400+30"]

1. Nf3 {[%emt 0:06:56]} Nf6 {[%emt 0:00:21]} 2. c4 {[%emt 0:00:09]} c5 {[%emt 0:01:46]} 3. g3 {[%emt 0:00:13]} d5 {[%emt 0:01:06]} 4. cxd5 {[%emt 0:00:06]} Nxd5 {[%emt 0:00:06]} 5. Bg2 {[%emt 0:00:25]} Nc6 {[%emt 0:00:20]} 6. Nc3 {[%emt 0:04:54]} Nc7 {[%emt 0:00:33]} 7. O-O {[%emt 0:07:05]} e5 {[%emt 0:00:06]} 8. a3 {[%emt 0:00:31]} a5 {[%emt 0:12:26]} 9. d3 {[%emt 0:08:57]} Be7 {[%emt 0:08:00]} 10. Nd2 {[%emt 0:03:23]} Be6 {[%emt 0:11:32]} 11. Nc4 {[%emt 0:08:33]} f6 {[%emt 0:00:34]} 12. f4 {[%emt 0:10:14]} exf4 {[%emt 0:01:01]} 13. Bxf4 {[%emt 0:00:21]} O-O {[%emt 0:01:59]} 14. Rc1 {[%emt 0:03:20]} Ra6 {[%emt 0:13:02]} 15. Qb3 {[%emt 0:10:05]} g5 {[%emt 0:03:00]} 16. Bxc7 {[%emt 0:04:40]} Qxc7 {[%emt 0:00:05]} 17. Bd5 {[%emt 0:04:25]} Kh8 {[%emt 0:15:21]} 18. Nb5 {[%emt 0:10:11]} Qd7 {[%emt 0:01:24]} 19. Bxe6 {[%emt 0:00:07]} Qxe6 {[%emt 0:00:05]} 20. Nc7 {[%emt 0:00:21]} Nd4 {[%emt 0:03:16]} 21. Nxe6 {[%emt 0:06:12]} Nxb3 {[%emt 0:00:05]} 22. Nxf8 {[%emt 0:00:13]} Nxc1 {[%emt 0:00:09]} 23. Rxc1 {[%emt 0:00:04]} Bxf8 {[%emt 0:00:14]} 24. a4 {[%emt 0:00:04]} Re6 {[%emt 0:03:53]} 25. e4 {[%emt 0:03:07]} b6 {[%emt 0:06:44]} 26. Rf1 {[%emt 0:01:41]} Bd6 {[%emt 0:03:12]} 27. Rf5 {[%emt 0:02:37]} Be5 {[%emt 0:00:59]} 28. Kf2 {[%emt 0:01:18]} Kg7 {[%emt 0:01:38]} 29. Ke3 {[%emt 0:00:10]} h5 {[%emt 0:01:50]} 30. Nxe5 {[%emt 0:04:22]} Rxe5 {[%emt 0:00:05]} 31. Rxe5 {[%emt 0:00:03]} fxe5 {[%emt 0:00:05]} 32. Kd2 {[%emt 0:00:02]} Kf6 {[%emt 0:00:09]} 33. Kc3 {[%emt 0:00:04]} Ke6 {[%emt 0:00:08]} 34. Kc4 {[%emt 0:00:03]} Kd6 {[%emt 0:00:13]} 35. Kb5 {[%emt 0:00:04]} Kc7 {[%emt 0:00:04]} 36. Ka6 {[%emt 0:00:59]} Kc6 {[%emt 0:07:20]} 37. h3 {[%emt 0:01:46]} Kc7 {[%emt 0:01:20]} 38. Ka7 {[%emt 0:01:00]} Kc6 {[%emt 0:00:19]} 39. Kb8 {[%emt 0:00:36]} b5 {[%emt 0:00:31]} 40. Ka7 {[%emt 0:00:16]} c4 {[%emt 0:01:53]} 41. dxc4 {[%emt 0:00:09]} bxa4 {[%emt 0:03:20]} 42. Ka6 {[%emt 0:00:00]} Kc5 {[%emt 0:00:40]} 43. Kxa5 {[%emt 0:00:01]} Kd4 {[%emt 0:00:13]} 44. Kxa4 {[%emt 0:00:30]} Kxe4 {[%emt 0:00:04]} 45. c5 {[%emt 0:00:05]} Kd5 {[%emt 0:00:31]} 46. b4 {[%emt 0:02:11]} e4 {[%emt 0:00:22]} 47. Kb3 {[%emt 0:00:04]} Kd4 {[%emt 0:01:16]} 48. c6 {[%emt 0:00:43]} 1-0

[Event "1st Bangalore GM-Open-A 2024"]
[Site "Bangalore"]
[Date "2024.01.20"]
[Round "4.29"]
[White "Thilakarathne, G M H"]
[Black "Rajarishi Karthi"]
[Result "1-0"]
[ECO "C07"]
[WhiteElo "2391"]
[BlackElo "2183"]
[Annotator "RC"]
[PlyCount "71"]
[EventDate "2024.01.20"]
[EventType "swiss"]
[EventCountry "IND"]
[SourceTitle "playchess.com"]
[Source "ChessBase"]
[SourceQuality "1"]
[TimeControl "5400+30"]

1. e4 {[%emt 0:00:03]} e6 {[%emt 0:00:39]} 2. d4 {[%emt 0:00:04]} d5 {[%emt 0:00:12]} 3. Nd2 {[%emt 0:00:04]} c5 {[%emt 0:00:11]} 4. Ngf3 {[%emt 0:02:21]} Nc6 {[%emt 0:02:31]} 5. exd5 {[%emt 0:02:08]} Qxd5 {[%emt 0:00:58]} 6. Bc4 {[%emt 0:03:03]} Qd8 {[%emt 0:00:22]} 7. dxc5 {[%emt 0:05:06]} Bxc5 {[%emt 0:00:33]} 8. O-O {[%emt 0:01:04]} Nf6 {[%emt 0:04:27]} 9. a3 {[%emt 0:07:20]} O-O {[%emt 0:07:50]} 10. b4 {[%emt 0:02:46]} Bd4 {[%emt 0:01:43]} 11. Rb1 {[%emt 0:03:34]} e5 {[%emt 0:04:45]} 12. Nxd4 {[%emt 0:09:45]} Nxd4 {[%emt 0:01:36]} 13. c3 {[%emt 0:13:27]} Nc6 {[%emt 0:05:56]} 14. Qf3 {[%emt 0:23:04]} Bg4 {[%emt 0:08:05]} 15. Qg3 {[%emt 0:00:39]} Qd7 {[%emt 0:06:03]} 16. Nb3 {[%emt 0:06:48]} Rad8 {[%emt 0:06:37]} 17. f3 {[%emt 0:05:24]} Qf5 {[%emt 0:08:25]} 18. Rb2 {[%emt 0:02:09]} Bh5 {[%emt 0:00:16]} 19. Re2 {[%emt 0:04:58]} Rfe8 {[%emt 0:05:07]} 20. Bg5 {[%emt 0:00:22]} Bg6 {[%emt 0:00:40]} 21. Nc5 {[%emt 0:03:08]} b6 {[%emt 0:05:51]} 22. Ne4 {[%emt 0:00:23]} Nh5 {[%emt 0:00:12]} 23. Qh4 {[%emt 0:00:16]} Nf4 {[%emt 0:00:27]} 24. Bxd8 {[%emt 0:00:16]} Nxe2+ {[%emt 0:01:22]} 25. Bxe2 {[%emt 0:00:01]} Nxd8 {[%emt 0:01:06]} 26. Nd6 {[%emt 0:00:08]} Qe6 {[%emt 0:00:05]} 27. Nxe8 {[%emt 0:00:07]} Qxe8 {[%emt 0:00:05]} 28. Bb5 {[%emt 0:00:36]} Qf8 {[%emt 0:00:06]} 29. Rd1 {[%emt 0:00:12]} f6 {[%emt 0:00:08]} 30. Qc4+ {[%emt 0:00:16]} Nf7 {[%emt 0:00:12]} 31. Rd7 {[%emt 0:00:39]} h5 {[%emt 0:00:39]} 32. Bc6 {[%emt 0:00:46]} Kh7 {[%emt 0:02:31]} 33. Be4 {[%emt 0:00:25]} Ng5 {[%emt 0:00:41]} 34. Bxg6+ {[%emt 0:00:12]} Kxg6 {[%emt 0:00:07]} 35. Qd3+ {[%emt 0:00:05]} Kh6 {[%emt 0:00:23]} 36. Rd8 {[%emt 0:00:12]} 1-0